[Event "Israel National League 2024"]
[Site "Israel"]
[Date "2024.02.16"]
[Round "7.13"]
[White "Emanuel, Yahav"]
[Black "Kochavi, Ori"]
[Result "1/2-1/2"]
[ECO "B13"]
[WhiteElo "2333"]
[BlackElo "2428"]
[Annotator "ChessBase"]
[PlyCount "317"]
[EventDate "2024.01.07"]
[EventType "team-tourn"]
[EventCountry "ISR"]
[SourceTitle "playchess.com"]
[Source "ChessBase"]
[SourceQuality "1"]
[TimeControl "40/5400+30:1800+30"]

1. e4 {[%emt 0:00:25]} c6 {[%emt 0:00:28]} 2. d4 {[%emt 0:00:09]} d5 {[%emt 0:00:03]} 3. exd5 {[%emt 0:00:21]} cxd5 {[%emt 0:00:23]} 4. Bd3 {[%emt 0:00:09]} Nc6 {[%emt 0:00:07]} 5. c3 {[%emt 0:00:07]} Qc7 {[%emt 0:00:04]} 6. h3 {[%emt 0:00:53]} e6 {[%emt 0:00:06]} 7. Nf3 {[%emt 0:00:18]} Bd6 {[%emt 0:00:05]} 8. O-O {[%emt 0:00:12]} Nge7 {[%emt 0:00:03]} 9. Re1 {[%emt 0:01:34]} a6 {[%emt 0:00:24]} 10. a4 {[%emt 0:01:04]} O-O {[%emt 0:15:04]} 11. b3 {[%emt 0:07:37]} f6 {[%emt 0:03:43]} 12. Ba3 {[%emt 0:08:15]} Bd7 {[%emt 0:00:11]} 13. Bxd6 {[%emt 0:02:53]} Qxd6 {[%emt 0:01:18]} 14. Nbd2 {[%emt 0:03:23]} Be8 {[%emt 0:08:55]} 15. Bf1 {[%emt 0:16:58]} Bh5 {[%emt 0:04:29]} 16. Qe2 {[%emt 0:05:12]} Bf7 {[%emt 0:00:11]} 17. g3 {[%emt 0:02:17]} Rae8 {[%emt 0:05:28]} 18. b4 {[%emt 0:03:11]} a5 {[%emt 0:11:03]} 19. b5 {[%emt 0:00:22]} Nb8 {[%emt 0:00:43]} 20. c4 {[%emt 0:02:36]} dxc4 {[%emt 0:02:27]} 21. Nxc4 {[%emt 0:02:26]} Qd8 {[%emt 0:00:08]} 22. Qb2 {[%emt 0:10:03]} Nd5 {[%emt 0:01:51]} 23. b6 {[%emt 0:01:33]} Nc6 {[%emt 0:00:49]} 24. Nfd2 {[%emt 0:10:39]} Re7 {[%emt 0:16:20]} 25. Rad1 {[%emt 0:03:55]} Ncb4 {[%emt 0:10:28]} 26. Ne4 {[%emt 0:01:06]} Nxb6 {[%emt 0:01:34]} 27. Nxa5 {[%emt 0:00:24]} N6d5 {[%emt 0:00:06]} 28. Nc4 {[%emt 0:00:44]} b6 {[%emt 0:00:49]} 29. Nc3 {[%emt 0:03:41]} Ra7 {[%emt 0:06:53]} 30. Ra1 {[%emt 0:02:02]} Nxc3 {[%emt 0:01:48]} 31. Qxc3 {[%emt 0:00:01]} Nd5 {[%emt 0:00:06]} 32. Qb3 {[%emt 0:00:17]} Ra8 {[%emt 0:05:56]} 33. Bg2 {[%emt 0:01:55]} Rb8 {[%emt 0:00:00]} 34. Qb2 {[%emt 0:02:59]} Ne7 {[%emt 0:00:56]} 35. Rab1 {[%emt 0:04:51]} Bg6 {[%emt 0:02:25]} 36. Rbc1 {[%emt 0:01:48]} Nf5 {[%emt 0:00:29]} 37. Rxe6 {[%emt 0:00:57]} Qxd4 {[%emt 0:00:16]} 38. Rxb6 {[%emt 0:00:18]} Rxb6 {[%emt 0:01:35]} 39. Qxb6 {[%emt 0:00:04]} Nxg3 {[%emt 0:00:07]} 40. Qxd4 {[%emt 0:01:47]} Ne2+ {[%emt 0:00:03]} 41. Kh2 {[%emt 0:31:02]} Nxd4 {[%emt 0:30:06]} 42. Rd1 {[%emt 0:00:00]} Nb3 {[%emt 0:00:00]} 43. a5 {[%emt 0:00:00]} Bf7 {[%emt 0:00:00]} 44. Nd6 {[%emt 0:00:00]} Nxa5 {[%emt 0:00:00]} 45. Nxf7 {[%emt 0:00:00]} Kxf7 {[%emt 0:00:00]} 46. Ra1 {[%emt 0:00:00]} Nb3 {[%emt 0:00:00]} 47. Bd5+ {[%emt 0:00:00]} Kg6 {[%emt 0:00:00]} 48. Bxb3 {[%emt 0:00:00]} Rb8 {[%emt 0:00:00]} 49. Bc2+ {[%emt 0:00:00]} Kh6 {[%emt 0:00:00]} 50. Ra7 {[%emt 0:00:00]} Rc8 {[%emt 0:00:00]} 51. Bb1 {[%emt 0:00:00]} Rb8 {[%emt 0:00:00]} 52. Bd3 {[%emt 0:00:00]} Rd8 {[%emt 0:00:00]} 53. Be4 {[%emt 0:00:00]} Rd4 {[%emt 0:00:00]} 54. Bb1 {[%emt 0:00:53]} Rb4 {[%emt 0:00:00]} 55. Bc2 {[%emt 0:01:08]} Rc4 {[%emt 0:00:00]} 56. Bb3 {[%emt 0:00:08]} Rb4 {[%emt 0:00:00]} 57. Bg8 {[%emt 0:00:09]} Rb8 {[%emt 0:00:00]} 58. Bc4 {[%emt 0:00:10]} Rc8 {[%emt 0:00:00]} 59. Ba2 {[%emt 0:00:13]} Rc2 {[%emt 0:00:00]} 60. Kg2 {[%emt 0:00:09]} Rb2 {[%emt 0:12:30]} 61. Bc4 {[%emt 0:02:33]} Rc2 {[%emt 0:00:00]} 62. Bd3 {[%emt 0:00:55]} Rc3 {[%emt 0:00:00]} 63. Rd7 {[%emt 0:00:24]} Ra3 {[%emt 0:00:00]} 64. Bc4 {[%emt 0:00:29]} Rc3 {[%emt 0:00:00]} 65. Be6 {[%emt 0:00:34]} Rc6 {[%emt 0:00:00]} 66. Bd5 {[%emt 0:00:16]} Rc5 {[%emt 0:00:00]} 67. Ba2 {[%emt 0:00:24]} Rg5+ {[%emt 0:00:00]} 68. Kf1 {[%emt 0:01:20]} Ra5 {[%emt 0:00:00]} 69. Bb3 {[%emt 0:00:29]} Rb5 {[%emt 0:00:00]} 70. Bf7 {[%emt 0:00:20]} Rb8 {[%emt 0:00:00]} 71. Kg2 {[%emt 0:00:52]} Rf8 {[%emt 0:00:00]} 72. Kg3 {[%emt 0:00:26]} Ra8 {[%emt 0:00:00]} 73. Kh2 {[%emt 0:02:09]} Rf8 {[%emt 0:00:00]} 74. Kg2 {[%emt 0:00:04]} Ra8 {[%emt 0:00:00]} 75. Rd5 {[%emt 0:00:17]} g6 {[%emt 0:00:00]} 76. Rd7 {[%emt 0:00:14]} Rb8 {[%emt 0:00:00]} 77. Bd5 {[%emt 0:00:30]} Re8 {[%emt 0:00:00]} 78. Rf7 {[%emt 0:01:02]} Rd8 {[%emt 0:00:00]} 79. Bc4 {[%emt 0:00:27]} Rc8 {[%emt 0:00:00]} 80. Bb3 {[%emt 0:00:30]} Rb8 {[%emt 0:00:00]} 81. Ba2 {[%emt 0:00:40]} Ra8 {[%emt 0:00:00]} 82. Bc4 {[%emt 0:00:19]} f5 {[%emt 0:00:00]} 83. Bd5 {[%emt 0:01:08]} Rd8 {[%emt 0:00:00]} 84. Be6 {[%emt 0:00:36]} Re8 {[%emt 0:00:00]} 85. Bd7 {[%emt 0:00:11]} Rb8 {[%emt 0:00:00]} 86. Bc6 {[%emt 0:00:20]} Rc8 {[%emt 0:00:00]} 87. Bb7 {[%emt 0:00:17]} Rd8 {[%emt 0:00:00]} 88. Rc7 {[%emt 0:00:28]} Re8 {[%emt 0:00:00]} 89. Bd5 {[%emt 0:00:36]} Rd8 {[%emt 0:00:00]} 90. Bb3 {[%emt 0:00:10]} Rb8 {[%emt 0:00:00]} 91. Ba2 {[%emt 0:00:07]} Ra8 {[%emt 0:00:00]} 92. Bc4 {[%emt 0:00:07]} Rd8 {[%emt 0:00:00]} 93. Kg3 {[%emt 0:00:48]} Ra8 {[%emt 0:00:00]} 94. Bd5 {[%emt 0:01:04]} Rd8 {[%emt 0:00:00]} 95. Ba2 {[%emt 0:00:21]} Rd3+ {[%emt 0:00:00]} 96. Kg2 {[%emt 0:00:08]} Rd8 {[%emt 0:00:00]} 97. Bb3 {[%emt 0:00:29]} Rb8 {[%emt 0:00:00]} 98. Be6 {[%emt 0:01:43]} Re8 {[%emt 0:00:00]} 99. Bc4 {[%emt 0:00:44]} Ra8 {[%emt 0:00:00]} 100. Kg3 {[%emt 0:00:43]} Rd8 {[%emt 0:00:00]} 101. f3 {[%emt 0:00:57]} Rb8 {[%emt 0:00:00]} 102. Kf4 {[%emt 0:00:17]} Re8 {[%emt 0:00:20]} 103. Rb7 {[%emt 0:01:06]} Rc8 {[%emt 0:00:50]} 104. Bd5 {[%emt 0:00:03]} Re8 {[%emt 0:00:15]} 105. Rc7 {[%emt 0:00:23]} Rb8 {[%emt 0:00:56]} 106. Rd7 {[%emt 0:00:28]} Re8 {[%emt 0:00:20]} 107. Rb7 {[%emt 0:00:20]} Rc8 {[%emt 0:00:24]} 108. Ke5 {[%emt 0:00:29]} Rd8 {[%emt 0:00:13]} 109. Be6 {[%emt 0:00:31]} Rf8 {[%emt 0:00:32]} 110. Ra7 {[%emt 0:00:35]} Rd8 {[%emt 0:00:21]} 111. Kf6 {[%emt 0:02:19]} Rf8+ {[%emt 0:00:31]} 112. Rf7 {[%emt 0:00:00]} Ra8 {[%emt 0:02:56]} 113. Rb7 {[%emt 0:00:00]} Rf8+ {[%emt 0:00:11]} 114. Bf7 {[%emt 0:00:00]} Ra8 {[%emt 0:00:13]} 115. Rb4 {[%emt 0:00:35]} Kh5 {[%emt 0:05:12]} 116. Kg7 {[%emt 0:01:02]} Ra7 {[%emt 0:00:04]} 117. h4 {[%emt 0:00:28]} Rc7 {[%emt 0:00:18]} 118. Ra4 {[%emt 0:00:32]} Rb7 {[%emt 0:00:08]} 119. Rd4 {[%emt 0:00:24]} Ra7 {[%emt 0:00:08]} 120. Rf4 {[%emt 0:00:30]} Rc7 {[%emt 0:00:39]} 121. Rb4 {[%emt 0:00:12]} Ra7 {[%emt 0:00:09]} 122. Rd4 {[%emt 0:00:15]} Rc7 {[%emt 0:01:11]} 123. Rb4 {[%emt 0:00:39]} Ra7 {[%emt 0:02:54]} 124. Kg8 {[%emt 0:01:01]} Rc7 {[%emt 0:00:26]} 125. Ra4 {[%emt 0:00:15]} Kh6 {[%emt 0:01:24]} 126. Kf8 {[%emt 0:00:48]} Rd7 {[%emt 0:00:47]} 127. Be8 {[%emt 0:00:23]} Rc7 {[%emt 0:00:37]} 128. Rf4 {[%emt 0:00:33]} Rc8 {[%emt 0:01:13]} 129. Rb4 {[%emt 0:00:36]} Rc7 {[%emt 0:00:17]} 130. Rd4 {[%emt 0:00:22]} Kh5 {[%emt 0:01:10]} 131. Bd7 {[%emt 0:00:32]} Rc3 {[%emt 0:00:22]} 132. Rf4 {[%emt 0:00:21]} Rc7 {[%emt 0:01:09]} 133. Be6 {[%emt 0:00:10]} Ra7 {[%emt 0:00:16]} 134. Kg8 {[%emt 0:00:27]} Kh6 {[%emt 0:00:32]} 135. Kh8 {[%emt 0:01:07]} Kh5 {[%emt 0:01:31]} 136. Rb4 {[%emt 0:00:43]} Re7 {[%emt 0:01:03]} 137. Bg8 {[%emt 0:00:14]} h6 {[%emt 0:00:55]} 138. Bh7 {[%emt 0:00:43]} Re8+ {[%emt 0:00:07]} 139. Kg7 {[%emt 0:00:09]} Re7+ {[%emt 0:00:08]} 140. Kg8 {[%emt 0:00:19]} Ra7 {[%emt 0:01:05]} 141. Rb8 {[%emt 0:01:06]} Ra3 {[%emt 0:01:09]} 142. f4 {[%emt 0:00:28]} g5 {[%emt 0:01:39]} 143. fxg5 {[%emt 0:00:22]} hxg5 {[%emt 0:00:05]} 144. hxg5 {[%emt 0:00:22]} Kxg5 {[%emt 0:00:03]} 145. Rf8 {[%emt 0:00:39]} f4 {[%emt 0:00:29]} 146. Be4 {[%emt 0:00:15]} Kg4 {[%emt 0:00:30]} 147. Kf7 {[%emt 0:00:10]} Kg3 {[%emt 0:01:02]} 148. Ke6 {[%emt 0:00:02]} f3 {[%emt 0:00:33]} 149. Rg8+ {[%emt 0:01:18]} Kf2 {[%emt 0:00:08]} 150. Bd5 {[%emt 0:00:34]} Ke1 {[%emt 0:01:49]} 151. Rg1+ {[%emt 0:00:28]} Kf2 {[%emt 0:00:44]} 152. Rc1 {[%emt 0:00:13]} Kg3 {[%emt 0:01:18]} 153. Ke5 {[%emt 0:00:23]} f2 {[%emt 0:02:16]} 154. Kd4 {[%emt 0:00:34]} Ra4+ {[%emt 0:00:56]} 155. Ke3 {[%emt 0:00:09]} Rf4 {[%emt 0:00:34]} 156. Rf1 {[%emt 0:00:16]} Rf8 {[%emt 0:00:17]} 157. Bc6 {[%emt 0:00:38]} Rf6 {[%emt 0:00:12]} 158. Be4 {[%emt 0:00:14]} Rf8 {[%emt 0:01:00]} 159. Bc6 {[%emt 0:00:25]} 1/2-1/2

[Event "Israel National League 2024"]
[Site "Israel"]
[Date "2024.02.16"]
[Round "7.14"]
[White "Ben Ari, Yannay"]
[Black "Tifferet, Shakked"]
[Result "0-1"]
[ECO "E06"]
[WhiteElo "2417"]
[BlackElo "2334"]
[Annotator "TA"]
[PlyCount "80"]
[EventDate "2024.01.07"]
[EventType "team-tourn"]
[EventCountry "ISR"]
[SourceTitle "playchess.com"]
[Source "ChessBase"]
[SourceQuality "1"]
[TimeControl "40/5400+30:1800+30"]

{[%evp 21,80,14,18,0,19,18,13,0,0,0,33,0,32,9,54,42,31,26,22,14,48,50,61,6,22,0,0,0,60,22,83,84,166,112,135,-24,-34,-35,-16,-18,-28,-390,-395,-698,-650,-681,-531,-497,-483,-1420,-1293,-1396,-1138,-1193,-997,-790,-292,-5406,-5406,-5406,-5406]} 1. c4 {[%emt 0:02:07]} e6 {[%emt 0:00:11]} 2. Nc3 {[%emt 0:00:13]} d5 {[%emt 0:00:05]} 3. d4 {[%emt 0:00:05]} Be7 {[%emt 0:00:04]} 4. Nf3 {[%emt 0:01:04]} Nf6 {[%emt 0:00:06]} 5. g3 {[%emt 0:00:03]} O-O {[%emt 0:01:09]} 6. Bg2 {[%emt 0:00:04]} dxc4 {[%emt 0:00:44]} 7. Ne5 {[%emt 0:00:12]} Nc6 {[%emt 0:00:35]} 8. Bxc6 {[%emt 0:00:08]} bxc6 {[%emt 0:00:03]} 9. Nxc6 {[%emt 0:00:10]} Qe8 {[%emt 0:00:04]} 10. Nxe7+ {[%emt 0:00:08]} Qxe7 {[%emt 0:00:03]} 11. Qa4 {[%emt 0:00:13]} c5 {[%emt 0:14:09]} 12. dxc5 {[%emt 0:00:09]} Qxc5 {[%emt 0:01:07]} 13. Be3 {[%emt 0:00:10]} Qc7 {[%emt 0:04:21]} 14. O-O-O {[%emt 0:02:18] The position is equal.} Bd7 {[%emt 0:12:47]} 15. Qa3 {[%emt 0:04:23]} Rfc8 {[%emt 0:03:26] Black is weak on the dark squares} 16. f3 {[%emt 0:19:18]} a5 {[%emt 0:06:31]} 17. Rd2 {[%emt 0:15:01]} Be8 {[%emt 0:15:21]} 18. Rhd1 {[%emt 0:05:02]} Qb7 {[%emt 0:04:15]} 19. Bc5 {[%emt 0:13:51]} Bc6 {[%emt 0:05:53]} 20. Rd4 {[%emt 0:05:33][%cal Oc5d6]} Nd7 {[%emt 0:04:42]} (20... Nd5 {is interesting.} 21. Ne4 c3 22. bxc3 Rcb8) 21. Be7 {[%emt 0:01:04]} (21. Rxc4 $2 Bd5 22. Rcd4 (22. Nxd5 $2 exd5 23. Rc3 Rxc5 $19) 22... Nxc5 $19 (22... Rxc5 $2 23. e4 $19)) 21... Nb6 {[%emt 0:06:53]} 22. e4 {[%emt 0:12:10] Prevents Nd5} (22. Rd8+ $14 Be8 23. Rxc8 Nxc8 24. Bc5) 22... h6 {[%emt 0:01:18]} 23. Bc5 {[%emt 0:04:11]} Nd7 {[%emt 0:01:02] And now ...Nxc5 would win.} 24. Bd6 {[%emt 0:00:03][%cal Og3g4]} (24. Rxc4 $2 Ne5 25. Rcd4 Nxf3 $19) 24... Bb5 {[%emt 0:01:52]} ({Black should play} 24... f5 $11) 25. g4 $14 {[%emt 0:00:37]} Ra6 {[%emt 0:05:16]} (25... Qb6 $11) 26. h4 $16 {[%emt 0:01:29]} Rac6 {[%emt 0:06:22]} (26... Raa8 $16) 27. Qxa5 {[%emt 0:00:51]} (27. g5 $18) 27... Rb6 {[%emt 0:00:52] [#]} 28. Nxb5 $2 {[%emt 0:08:57]} (28. Ba3 $1 $16) 28... Rxb5 $11 {[%emt 0:00:01]} 29. Qc3 {[%emt 0:00:01][%cal Od6f4]} Nb6 {[%emt 0:01:00][%mdl 1024] Black has compensation.} 30. Ba3 $1 {[%emt 0:00:38]} Qa8 {[%emt 0:01:40] Threatens to win with ...e5.} 31. Rd6 $2 {[%emt 0:01:36][%mdl 8192] White does not recover from this.} (31. Be7 $11 {and White has nothing to worry.}) 31... Na4 $19 {[%emt 0:01:47]} 32. Qd4 {[%emt 0:00:00]} (32. Qc2 Rbb8 33. Kb1 Nxb2 34. Bxb2) 32... Rbb8 {[%emt 0:00:50]} 33. g5 {[%emt 0:01:18] Hoping for gxh6.} hxg5 {[%emt 0:01:15]} 34. Rg1 {[%emt 0:02:13]} c3 {[%emt 0:01:05]} (34... gxh4 35. Qxg7#) 35. b3 {[%emt 0:02:08] [#]} (35. Rxg5 $142 cxb2+ 36. Kd2 Qa5+ (36... b1=R 37. Qxg7#) (36... b1=N+ $2 37. Ke1 $18) (36... g6 $2 37. Rd7 $19) 37. Rxa5) 35... Nb6 $1 {[%emt 0:00:10][%mdl 512]} 36. Bb4 {[%emt 0:01:02]} (36. Bc5 Qxa2) 36... Qxa2 $1 {[%emt 0:00:41]} 37. Bxc3 {[%emt 0:00:00] [#]} Rxc3+ $1 {[%emt 0:00:41][%mdl 512]} 38. Qxc3 {[%emt 0:00:00]} Rc8 $2 {[%emt 0:00:05]} (38... gxh4 39. Qxg7#) (38... Qa3+ 39. Kd1 Qxd6+ 40. Qd2 Qxd2+ 41. Kxd2 gxh4) 39. Rd8+ $2 {[%emt 0:00:54]} (39. Rc6 Rxc6 40. Qxc6 Qa1+ (40... Qxb3 41. Rxg5 Nc4 42. Qe8+ Kh7 43. Rh5+ Kg6 44. Rg5+ Kh7 45. Rh5+ Kg6 46. Rg5+ Kh7 $11) 41. Kd2 Qxg1 42. Qe8+ Kh7 43. Qxf7 Qd4+ (43... gxh4 44. Qh5+ Kg8 45. Qe8+ Kh7 46. Qh5+ Kg8 47. Qe8+ Kh7 48. Qh5+ $11) 44. Ke2 Qb2+ (44... gxh4 45. Qh5+ Kg8 46. Qe8+ Kh7 47. Qh5+ Kg8 48. Qe8+ Kh7 49. Qh5+ $11) 45. Kf1 Qc1+ (45... Qxb3 46. Qh5+ Kg8 47. Qe8+ Kh7 48. Qh5+ Kg8 49. Qe8+ Kh7 50. Qh5+ $11) 46. Kg2 gxh4 47. Qxe6 Qg5+ 48. Kh1) 39... Rxd8 {[%emt 0:00:02]} 40. Rxg5 {[%emt 0:00:01]} Rc8 {[%emt 0:00:43] Weighted Error Value: White=0.75/Black=0.43.  Loses game:     	White=1     	---        Mistake:       	White=5     	Black=3      Inaccurate:     	White=1     	Black=4      OK:         	White=7     	Black=5      Best:        	---       	Black=4      Strong:       	White=1     	---} 0-1

[Event "Israel National League 2024"]
[Site "Israel"]
[Date "2024.02.16"]
[Round "7.15"]
[White "Lev, Ronen"]
[Black "Iliaguev, Nisim"]
[Result "1-0"]
[ECO "E36"]
[WhiteElo "2341"]
[BlackElo "2399"]
[Annotator "TA"]
[PlyCount "85"]
[EventDate "2024.01.07"]
[EventType "team-tourn"]
[EventCountry "ISR"]
[SourceTitle "playchess.com"]
[Source "ChessBase"]
[SourceQuality "1"]
[TimeControl "40/5400+30:1800+30"]

{[%evp 11,85,-16,39,35,32,24,41,39,33,27,36,35,36,36,52,38,31,44,41,39,18,35,72,80,78,79,85,81,89,70,127,95,130,104,112,104,87,135,151,153,161,154,181,142,212,218,335,351,307,310,360,350,334,151,161,146,164,130,164,162,147,123,158,150,267,281,240,191,559,557,933,865,29979,29980,29991,29992]} 1. d4 {[%emt 0:00:04]} Nf6 {[%emt 0:07:45]} 2. c4 {[%emt 0:00:06]} e6 {[%emt 0:00:15]} 3. Nc3 {[%emt 0:00:19]} Bb4 {[%emt 0:00:05]} 4. Qc2 {[%emt 0:00:06]} d5 {[%emt 0:00:10]} 5. cxd5 {[%emt 0:00:06]} exd5 {[%emt 0:01:50]} 6. a3 {[%emt 0:00:06]} Be7 {[%emt 0:06:29]} (6... Bxc3+ $11 7. bxc3 O-O) 7. Bg5 {[%emt 0:00:14]} O-O {[%emt 0:00:32]} 8. e3 {[%emt 0:00:03]} c6 {[%emt 0:07:20]} 9. Bd3 {[%emt 0:00:29] White is slightly better.} h6 {[%emt 0:00:09]} 10. Bh4 {[%emt 0:00:05]} Be6 {[%emt 0:02:00]} 11. Nge2 {[%emt 0:00:56]} Nbd7 {[%emt 0:04:22]} 12. Nf4 {[%emt 0:01:36]} Bd6 {[%emt 0:11:31]} 13. O-O {[%emt 0:02:31]} g5 {[%emt 0:16:18]} 14. Nxe6 {[%emt 0:00:38]} fxe6 {[%emt 0:00:05]} 15. Bg3 {[%emt 0:00:05]} Bxg3 {[%emt 0:00:14]} 16. hxg3 {[%emt 0:00:45]} Kg7 {[%emt 0:01:27]} 17. e4 {[%emt 0:06:55][%cal Be3e4,Be4e5][%mdl 32] White is more active.} Qb6 {[%emt 0:06:01]} 18. e5 {[%emt 0:10:01]} Ng4 {[%emt 0:08:33]} 19. Be2 $1 {[%emt 0:09:20]} (19. Ne2 Ndxe5 20. Bh7 (20. dxe5 $2 Rxf2 21. Kh1 Rxg2 $19) 20... Nc4 $15) 19... Nxf2 {[%emt 0:13:03] [#]} 20. Bh5 $1 {[%emt 0:03:32] Dancing on a razor blade.} (20. Rxf2 $2 Rxf2 21. Kxf2 Qxd4+ (21... Nxe5 $2 22. Rd1 $18) 22. Ke1 Qg1+ (22... Qxe5 23. Nd1 $17) 23. Kd2 (23. Bf1 $2 Rf8 $19) 23... Qxa1 $19) 20... Rf5 $1 {[%emt 0:07:26][%cal Oa8f8]} 21. Rxf2 {[%emt 0:25:08]} Qxd4 {[%emt 0:01:29][%cal Oa8f8]} 22. Raf1 {[%emt 0:03:22]} Nxe5 {[%emt 0:03:35]} 23. Kh2 $36 {[%emt 0:00:37][%mdl 2048] Keeping Black busy.} Rxf2 {[%emt 0:00:39]} 24. Rxf2 {[%emt 0:00:01]} Ng4+ {[%emt 0:00:36]} 25. Bxg4 {[%emt 0:02:47]} Qxg4 {[%emt 0:00:02]} 26. Rf1 {[%emt 0:00:23]} Qh5+ {[%emt 0:00:19]} 27. Kg1 {[%emt 0:00:01]} Qg6 {[%emt 0:01:07]} (27... Rf8 $16 28. Rxf8 Kxf8 29. Qf2+ Ke7 30. Qxa7 Kf6 31. Qxb7 d4 32. Ne4+ Ke5) 28. Qf2 $18 {[%emt 0:00:21]} e5 {[%emt 0:00:24]} (28... Kg8 $142 29. Qe3 g4) 29. g4 {[%emt 0:01:49][%cal Bg3g4,Bg4f5,Bf5f6][%mdl 32]} Qe6 {[%emt 0:00:38]} 30. Ne2 {[%emt 0:00:00]} d4 {[%emt 0:00:34]} 31. Ng3 {[%emt 0:00:10]} Rd8 {[%emt 0:01:02]} 32. Qf5 {[%emt 0:04:10]} (32. Qe1 $18 {has better winning chances. Strongly threatening Nh5+.} Rf8 33. Nf5+ Kh7 34. Rf3) 32... Qxf5 $16 {[%emt 0:00:00]} 33. gxf5 {[%emt 0:00:02][%mdl 4096] Endgame. KRN-KR} (33. Rxf5 $6 d3 34. Rf1 (34. Rxe5 $2 d2 $19) 34... Kg6 $16) 33... c5 {[%emt 0:00:22]} 34. Ne4 {[%emt 0:00:54]} (34. f6+ Kf7 $11) 34... c4 {[%emt 0:00:19]} 35. Kf2 {[%emt 0:01:10]} b5 {[%emt 0:00:38]} 36. Ke2 {[%emt 0:00:16]} a5 {[%emt 0:00:09]} 37. g4 {[%emt 0:04:42]} Rb8 {[%emt 0:01:00] [#]} (37... Rd7 $16 {keeps fighting.} 38. Rc1 d3+ 39. Ke3 Rd4) 38. f6+ $1 $18 {[%emt 0:09:36]} Kf7 {[%emt 0:00:21]} 39. Rf5 {[%emt 0:01:59]} b4 $2 {[%emt 0:00:21]} (39... Rb6 {is tougher.} 40. Kd1 (40. Rxe5 Re6 $18) 40... Re6) 40. Rxe5 {[%emt 0:01:55] aiming for Re7+.} c3 {[%emt 0:00:16]} 41. bxc3 {[%emt 0:37:52] Threatens to win with Re7+.} (41. Rxa5 cxb2 42. Ra7+ Kg8 $11 (42... Kf8 43. Nd6 $11)) 41... b3 {[%emt 0:30:51]} 42. Re7+ {[%emt 0:01:25]} (42. cxd4 b2 43. Re7+ (43. Rxa5 $2 {loses.} b1=Q $19) 43... Kf8 $16) 42... Kf8 {[%emt 0:00:01]} 43. Nc5 {[%emt 0:01:03] Weighted Error Value: White=0.11 (very precise) /Black=0.47.  Missed win:     	White=1     	---        Mistake:       	---       	Black=4      Inaccurate:     	---       	Black=3      OK:         	White=15    	Black=10     Best:        	White=6     	Black=2      Strong:       	White=3     	Black=1} ({Less strong is} 43. cxd4 b2 44. Nd2 b1=R 45. Nxb1 Rxb1 $16) 1-0